[Event "MČR družstev mladších žáků 2024"]
[Site "Harrachov, Czech Republic"]
[Date "2024.06.15"]
[Round "5.16"]
[White "Malek Daniel"]
[Black "Zavrel Daniel"]
[Result "1-0"]
[TimeControl "25+10"]
[WhiteFideId "23742720"]
[BlackFideId "23753951"]
[WhiteElo "1246"]
[BlackElo "1106"]

1. e4 {[%clk 00:25:17]} {[%emt 00:00:02]} e5 {[%clk 00:25:19]} {[%emt
00:00:02]} 2. Nf3 {[%clk 00:25:25]} {[%emt 00:00:02]} Nc6 {[%clk 00:25:27]}
{[%emt 00:00:02]} 3. Bc4 {[%clk 00:25:34]} {[%emt 00:00:02]} Bc5 {[%clk
00:25:33]} {[%emt 00:00:04]} 4. c3 {[%clk 00:25:42]} {[%emt 00:00:02]} Nf6
{[%clk 00:25:42]} {[%emt 00:00:01]} 5. d4 {[%clk 00:25:50]} {[%emt 00:00:02]}
exd4 {[%clk 00:25:50]} {[%emt 00:00:02]} 6. cxd4 {[%clk 00:25:58]} {[%emt
00:00:02]} Bb4+ {[%clk 00:25:55]} {[%emt 00:00:05]} 7. Bd2 {[%clk 00:26:06]}
{[%emt 00:00:01]} Nxe4 {[%clk 00:25:31]} {[%emt 00:00:34]} 8. Bxb4 {[%emt
00:00:07]} Nxb4 {[%clk 00:25:38]} 9. Bxf7+ {[%clk 00:26:17]} {[%emt 00:00:05]}
Kf8 {[%clk 00:24:43]} {[%emt 00:01:01]} 10. O-O {[%clk 00:25:11]} {[%emt
00:01:19]} d5 {[%clk 00:23:36]} {[%emt 00:01:12]} 11. Ne5 {[%clk 00:24:29]}
{[%emt 00:00:58]} Nc6 {[%clk 00:23:11]} {[%emt 00:00:35]} 12. Nxc6 {[%clk
00:23:52]} {[%emt 00:00:46]} bxc6 {[%clk 00:23:09]} {[%emt 00:00:12]} 13. Bh5
{[%clk 00:22:54]} {[%emt 00:01:07]} Qg5 {[%clk 00:22:24]} {[%emt 00:00:47]} 14.
Qe2 {[%clk 00:20:34]} {[%emt 00:02:38]} Nf6 {[%clk 00:18:51]} {[%emt 00:03:40]}
15. Re1 {[%clk 00:19:45]} {[%emt 00:01:03]} Ne4 {[%clk 00:16:56]} {[%emt
00:02:03]} 16. Qf3+ {[%clk 00:19:08]} {[%emt 00:00:50]} Qf6 {[%clk 00:16:40]}
{[%emt 00:00:21]} 17. Nc3 {[%clk 00:17:09]} {[%emt 00:02:14]} Qxf3 {[%clk
00:16:22]} {[%emt 00:00:28]} 18. Bxf3 {[%clk 00:16:38]} {[%emt 00:00:41]} Nf6
{[%clk 00:15:19]} {[%emt 00:01:08]} 19. Rac1 {[%clk 00:16:06]} {[%emt
00:00:47]} Bd7 {[%clk 00:13:45]} {[%emt 00:01:45]} 20. Na4 {[%clk 00:15:18]}
{[%emt 00:00:57]} Re8 {[%clk 00:10:39]} {[%emt 00:03:16]} 21. Rxe8+ {[%clk
00:14:25]} {[%emt 00:01:03]} Bxe8 {[%clk 00:10:41]} {[%emt 00:00:08]} 22. Nc5
{[%clk 00:14:27]} {[%emt 00:00:07]} Kf7 {[%clk 00:09:52]} {[%emt 00:00:52]} 23.
Na6 {[%clk 00:13:36]} {[%emt 00:01:08]} Bd7 {[%clk 00:06:48]} {[%emt 00:03:08]}
24. Nxc7 {[%clk 00:13:02]} {[%emt 00:00:49]} Rb8 {[%clk 00:06:07]} {[%emt
00:00:45]} 25. b3 {[%clk 00:12:21]} {[%emt 00:00:57]} Rc8 {[%clk 00:05:37]}
{[%emt 00:00:36]} 26. Na6 {[%clk 00:12:16]} {[%emt 00:00:19]} Re8 {[%clk
00:04:09]} {[%emt 00:01:32]} 27. Nc5 {[%clk 00:12:00]} {[%emt 00:00:31]} Rc8
{[%clk 00:02:53]} {[%emt 00:01:24]} 28. Nxd7 {[%clk 00:11:55]} {[%emt
00:00:18]} Nxd7 {[%clk 00:02:57]} {[%emt 00:00:06]} 29. Bxd5+ {[%clk 00:12:01]}
{[%emt 00:00:04]} Ke7 {[%clk 00:02:39]} {[%emt 00:00:28]} 30. Rxc6 {[%clk
00:11:48]} {[%emt 00:00:23]} Rxc6 {[%clk 00:02:43]} {[%emt 00:00:07]} 31. Bxc6
{[%clk 00:11:54]} {[%emt 00:00:03]} Nf6 {[%clk 00:02:44]} {[%emt 00:00:09]} 32.
f3 {[%clk 00:11:42]} {[%emt 00:00:21]} Kd6 {[%clk 00:02:50]} {[%emt 00:00:04]}
33. Be4 {[%clk 00:11:38]} {[%emt 00:00:15]} Kc7 {[%clk 00:02:50]} {[%emt
00:00:07]} 34. Kf2 {[%clk 00:11:47]} {[%emt 00:00:05]} Kb6 {[%clk 00:02:59]}
{[%emt 00:00:01]} 35. Ke3 {[%clk 00:11:52]} {[%emt 00:00:05]} Kb5 {[%clk
00:03:08]} {[%emt 00:00:01]} 36. a3 {[%clk 00:11:55]} {[%emt 00:00:06]} a5
{[%clk 00:03:16]} {[%emt 00:00:02]} 37. Kf4 {[%clk 00:11:34]} {[%emt 00:00:29]}
a4 {[%clk 00:03:22]} {[%emt 00:00:06]} 38. Bd3+ {[%clk 00:11:14]} {[%emt
00:00:30]} Ka5 {[%clk 00:03:29]} {[%emt 00:00:02]} 39. b4+ {[%clk 00:11:22]}
{[%emt 00:00:02]} Kb6 {[%clk 00:03:37]} {[%emt 00:00:02]} 40. Ke5 {[%clk
00:11:04]} {[%emt 00:00:28]} h6 {[%clk 00:03:40]} {[%emt 00:00:08]} 41. d5
{[%clk 00:11:05]} {[%emt 00:00:08]} Kc7 {[%clk 00:03:39]} {[%emt 00:00:11]} 42.
Bb5 {[%clk 00:11:02]} {[%emt 00:00:13]} Nd7+ {[%clk 00:03:46]} {[%emt
00:00:04]} 43. Bxd7 {[%clk 00:11:04]} {[%emt 00:00:08]} Kxd7 {[%clk 00:03:54]}
{[%emt 00:00:02]} 1-0



[ePGN "0.1;DGT LiveChess/2.2.6"]

[Event "MČR družstev mladších žáků 2024"]
[Site "Harrachov, Czech Republic"]
[Date "2024.06.15"]
[Round "5.19"]
[White "Frantsev Iegor"]
[Black "Fadrny Jachym"]
[Result "0-1"]
[TimeControl "25+10"]
[WhiteFideId "23736305"]
[BlackFideId "23744170"]
[WhiteElo "1413"]
[BlackElo "1537"]

1. e4 {[%clk 00:25:15]} {[%emt 00:00:04]} e6 {[%clk 00:25:18]} {[%emt
00:00:03]} 2. d4 {[%clk 00:25:18]} {[%emt 00:00:06]} d5 {[%clk 00:25:25]}
{[%emt 00:00:03]} 3. Nc3 {[%clk 00:25:22]} {[%emt 00:00:06]} Nc6 {[%clk
00:24:50]} {[%emt 00:00:45]} 4. e5 {[%clk 00:24:32]} {[%emt 00:01:00]} Bd7
{[%clk 00:24:40]} {[%emt 00:00:20]} 5. a3 {[%clk 00:24:17]} {[%emt 00:00:25]}
Be7 {[%clk 00:24:45]} {[%emt 00:00:05]} 6. f4 {[%clk 00:24:05]} {[%emt
00:00:22]} Nh6 {[%clk 00:24:27]} {[%emt 00:00:29]} 7. Nf3 {[%clk 00:24:05]}
{[%emt 00:00:09]} Nf5 {[%clk 00:24:25]} {[%emt 00:00:12]} 8. g4 {[%clk
00:20:26]} {[%emt 00:03:49]} Bh4+ {[%clk 00:24:17]} {[%emt 00:00:18]} 9. Ke2
{[%clk 00:20:26]} {[%emt 00:00:11]} Nh6 {[%clk 00:23:26]} {[%emt 00:01:01]} 10.
g5 {[%clk 00:18:37]} {[%emt 00:01:58]} Nf5 {[%clk 00:23:33]} {[%emt 00:00:03]}
11. Bh3 {[%clk 00:18:32]} {[%emt 00:00:14]} Nce7 {[%clk 00:22:28]} {[%emt
00:01:17]} 12. Bxf5 {[%clk 00:17:06]} {[%emt 00:01:36]} Nxf5 {[%clk 00:22:35]}
{[%emt 00:00:03]} 13. Nxh4 {[%clk 00:16:43]} {[%emt 00:00:33]} Nxh4 {[%clk
00:22:34]} {[%emt 00:00:11]} 14. Qe1 {[%clk 00:16:40]} {[%emt 00:00:12]} Nf5
{[%clk 00:22:42]} {[%emt 00:00:03]} 15. Be3 {[%clk 00:16:27]} {[%emt 00:00:23]}
c5 {[%clk 00:22:01]} {[%emt 00:00:51]} 16. Qf2 {[%clk 00:15:44]} {[%emt
00:00:52]} c4 {[%clk 00:22:05]} {[%emt 00:00:07]} 17. h4 {[%clk 00:15:26]}
{[%emt 00:00:27]} b5 {[%clk 00:21:11]} {[%emt 00:01:04]} 18. h5 {[%clk
00:15:09]} {[%emt 00:00:28]} Ke7 {[%clk 00:17:11]} {[%emt 00:04:10]} 19. Qg2
{[%clk 00:13:27]} {[%emt 00:01:50]} Rg8 {[%clk 00:16:18]} {[%emt 00:01:04]} 20.
g6 {[%clk 00:13:00]} {[%emt 00:00:37]} fxg6 {[%clk 00:15:48]} {[%emt 00:00:40]}
21. hxg6 {[%clk 00:12:56]} {[%emt 00:00:13]} h6 {[%clk 00:15:48]} {[%emt
00:00:11]} 22. Bf2 {[%clk 00:11:01]} {[%emt 00:02:05]} Qb6 {[%clk 00:15:06]}
{[%emt 00:00:53]} 23. Rad1 {[%clk 00:09:44]} {[%emt 00:01:26]} a5 {[%clk
00:14:29]} {[%emt 00:00:48]} 24. Rh5 {[%clk 00:09:42]} {[%emt 00:00:10]} Rgf8
{[%clk 00:14:02]} {[%emt 00:00:39]} 25. Qxd5 {[%clk 00:01:49]} {[%emt
00:08:03]} Bc6 {[%clk 00:13:04]} {[%emt 00:01:07]} 26. Qc5+ {[%clk 00:01:26]}
{[%emt 00:00:33]} Qxc5 {[%clk 00:13:13]} {[%emt 00:00:02]} 27. dxc5 {[%clk
00:01:35]} {[%emt 00:00:01]} b4 {[%clk 00:12:44]} {[%emt 00:00:39]} 28. Nb1
{[%clk 00:00:58]} {[%emt 00:00:46]} Be4 {[%clk 00:12:12]} {[%emt 00:00:42]} 29.
Rd2 {[%clk 00:00:48]} {[%emt 00:00:21]} Rfd8 {[%clk 00:12:16]} {[%emt
00:00:06]} 30. Rxd8 {[%clk 00:00:19]} {[%emt 00:00:39]} Rxd8 {[%clk 00:12:24]}
{[%emt 00:00:02]} 31. Rxf5 {[%clk 00:00:20]} {[%emt 00:00:08]} Bxf5 {[%clk
00:12:22]} {[%emt 00:00:13]} 32. Bh4+ {[%clk 00:00:29]} Ke8 {[%clk 00:12:26]}
{[%emt 00:00:06]} 33. Bxd8 {[%clk 00:00:36]} {[%emt 00:00:02]} Kxd8 {[%clk
00:12:35]} {[%emt 00:00:02]} 34. Nd2 {[%clk 00:00:14]} {[%emt 00:00:32]} c3
{[%clk 00:12:31]} {[%emt 00:00:13]} 35. bxc3 {[%clk 00:00:17]} {[%emt
00:00:08]} bxa3 {[%clk 00:12:37]} {[%emt 00:00:05]} 36. Nb3 {[%clk 00:00:19]}
{[%emt 00:00:08]} Bxc2 {[%clk 00:12:37]} {[%emt 00:00:09]} 37. Nc1 {[%clk
00:00:13]} {[%emt 00:00:15]} Bxg6 {[%clk 00:12:43]} {[%emt 00:00:05]} 38. Kd2
{[%emt 00:00:17]} h5 {[%emt 00:00:04]} 39. c4 {[%emt 00:00:02]} h4 {[%emt
00:00:28]} 40. Ke2 {[%emt 00:00:03]} Kc7 {[%emt 00:00:06]} 41. Nb3 {[%emt
00:00:03]} a4 {[%emt 00:00:04]} 42. Na1 {[%emt 00:00:02]} Kc6 {[%emt 00:00:02]}
43. Ke3 {[%emt 00:00:02]} Kxc5 {[%emt 00:00:02]} 0-1



[ePGN "0.1;DGT LiveChess/2.2.6"]

[Event "MČR družstev mladších žáků 2024"]
[Site "Harrachov, Czech Republic"]
[Date "2024.06.15"]
[Round "5.2"]
[White "Sudrich Radek"]
[Black "Artamonov Mikhail"]
[Result "1-0"]
[TimeControl "25+10"]
[WhiteFideId "23734361"]
[BlackFideId "23732946"]
[WhiteElo "1470"]
[BlackElo "1515"]

1. d4 {[%clk 00:25:19]} e6 {[%clk 00:25:18]} {[%emt 00:00:02]} 2. c4 {[%clk
00:25:27]} {[%emt 00:00:02]} d5 {[%clk 00:25:27]} {[%emt 00:00:01]} 3. Nc3
{[%clk 00:25:34]} {[%emt 00:00:03]} Nf6 {[%clk 00:25:31]} {[%emt 00:00:06]} 4.
Nf3 {[%clk 00:25:40]} {[%emt 00:00:04]} Be7 {[%clk 00:25:12]} {[%emt 00:00:29]}
5. Bg5 {[%clk 00:25:42]} {[%emt 00:00:07]} O-O {[%clk 00:25:02]} {[%emt
00:00:19]} 6. e3 {[%clk 00:25:33]} {[%emt 00:00:19]} Nc6 {[%clk 00:24:25]}
{[%emt 00:00:46]} 7. cxd5 {[%clk 00:25:31]} {[%emt 00:00:13]} exd5 {[%clk
00:24:32]} {[%emt 00:00:03]} 8. a3 {[%clk 00:25:33]} {[%emt 00:00:08]} Bf5
{[%clk 00:24:23]} {[%emt 00:00:19]} 9. Bd3 {[%clk 00:25:07]} {[%emt 00:00:37]}
Bxd3 {[%clk 00:24:09]} {[%emt 00:00:25]} 10. Qxd3 {[%clk 00:25:13]} {[%emt
00:00:04]} Qd7 {[%clk 00:22:52]} {[%emt 00:01:27]} 11. O-O {[%clk 00:23:54]}
{[%emt 00:01:28]} Rae8 {[%clk 00:22:05]} {[%emt 00:00:57]} 12. Bxf6 {[%clk
00:23:40]} {[%emt 00:00:25]} Bxf6 {[%clk 00:22:07]} {[%emt 00:00:07]} 13. Qb5
{[%clk 00:23:47]} {[%emt 00:00:03]} Rd8 {[%clk 00:21:36]} {[%emt 00:00:42]} 14.
b4 {[%clk 00:22:30]} {[%emt 00:01:27]} Rfe8 {[%clk 00:20:14]} {[%emt 00:01:32]}
15. Rac1 {[%clk 00:22:13]} {[%emt 00:00:26]} h6 {[%clk 00:18:27]} {[%emt
00:01:59]} 16. Qxb7 {[%clk 00:21:16]} {[%emt 00:01:07]} Rb8 {[%clk 00:18:33]}
{[%emt 00:00:04]} 17. Qa6 {[%clk 00:21:22]} {[%emt 00:00:02]} Rb6 {[%clk
00:17:52]} {[%emt 00:00:52]} 18. Qd3 {[%clk 00:21:12]} {[%emt 00:00:19]} Ne7
{[%clk 00:16:46]} {[%emt 00:01:17]} 19. Ne2 {[%clk 00:20:31]} {[%emt 00:00:50]}
Ng6 {[%clk 00:16:07]} {[%emt 00:00:52]} 20. Ng3 {[%clk 00:20:02]} {[%emt
00:00:38]} c6 {[%clk 00:15:25]} {[%emt 00:00:52]} 21. Qf5 {[%clk 00:18:34]}
{[%emt 00:01:35]} Qxf5 {[%clk 00:14:06]} {[%emt 00:01:32]} 22. Nxf5 {[%clk
00:18:42]} {[%emt 00:00:02]} Rc8 {[%clk 00:12:25]} {[%emt 00:01:49]} 23. Rc3
{[%clk 00:18:26]} {[%emt 00:00:27]} Re8 {[%clk 00:07:11]} {[%emt 00:05:24]} 24.
Rfc1 {[%clk 00:18:26]} {[%emt 00:00:10]} Re6 {[%clk 00:07:16]} {[%emt
00:00:06]} 25. Ne1 {[%clk 00:17:43]} {[%emt 00:00:53]} Ne7 {[%clk 00:07:05]}
{[%emt 00:00:21]} 26. Nxe7+ {[%clk 00:17:37]} {[%emt 00:00:15]} Bxe7 {[%clk
00:07:13]} {[%emt 00:00:02]} 27. Nd3 {[%clk 00:17:43]} {[%emt 00:00:04]} f6
{[%clk 00:06:41]} {[%emt 00:00:42]} 28. Nf4 {[%clk 00:17:33]} {[%emt 00:00:20]}
Rd6 {[%clk 00:06:41]} {[%emt 00:00:11]} 29. Nd3 {[%clk 00:15:34]} {[%emt
00:02:08]} Re6 {[%clk 00:06:46]} {[%emt 00:00:04]} 30. Kf1 {[%clk 00:15:33]}
{[%emt 00:00:11]} Kf7 {[%clk 00:06:20]} {[%emt 00:00:36]} 31. Ke2 {[%clk
00:15:37]} {[%emt 00:00:06]} Ke8 {[%clk 00:05:27]} {[%emt 00:01:03]} 32. f4
{[%clk 00:15:39]} {[%emt 00:00:08]} Kd7 {[%clk 00:04:11]} {[%emt 00:01:26]} 33.
Kf3 {[%clk 00:14:57]} {[%emt 00:00:52]} Bd6 {[%clk 00:03:45]} {[%emt 00:00:36]}
34. Nc5+ {[%clk 00:13:29]} {[%emt 00:01:38]} Bxc5 {[%clk 00:03:52]} {[%emt
00:00:03]} 35. Rxc5 {[%clk 00:13:38]} {[%emt 00:00:01]} a6 {[%clk 00:02:53]}
{[%emt 00:01:09]} 36. Re1 {[%clk 00:13:05]} {[%emt 00:00:42]} f5 {[%clk
00:02:25]} {[%emt 00:00:40]} 37. g4 {[%clk 00:13:01]} {[%emt 00:00:14]} g6
{[%clk 00:02:34]} 38. gxf5 {[%clk 00:13:09]} {[%emt 00:00:02]} gxf5 {[%clk
00:02:36]} {[%emt 00:00:08]} 39. Rg1 {[%clk 00:13:18]} Re7 {[%clk 00:01:22]}
{[%emt 00:01:23]} 40. Rg6 {[%clk 00:13:22]} {[%emt 00:00:06]} Re6 {[%clk
00:01:31]} {[%emt 00:00:01]} 41. Rg7+ {[%clk 00:13:08]} {[%emt 00:00:25]} Re7
{[%clk 00:01:40]} {[%emt 00:00:01]} 42. Rg3 {[%clk 00:12:51]} {[%emt 00:00:26]}
Re6 {[%clk 00:01:34]} {[%emt 00:00:16]} 43. Kg2 {[%clk 00:12:59]} {[%emt
00:00:02]} Re7 {[%clk 00:01:14]} {[%emt 00:00:31]} 44. Kh3 {[%clk 00:13:01]}
{[%emt 00:00:08]} Rb8 {[%clk 00:01:01]} {[%emt 00:00:23]} 45. Kh4 {[%clk
00:12:56]} {[%emt 00:00:14]} Rbe8 {[%clk 00:00:59]} {[%emt 00:00:12]} 46. Rc3
{[%clk 00:13:05]} {[%emt 00:00:01]} Re6 {[%clk 00:01:03]} {[%emt 00:00:06]} 47.
Kh5 {[%clk 00:13:08]} {[%emt 00:00:07]} R8e7 {[%clk 00:01:07]} {[%emt
00:00:06]} 48. h4 {[%clk 00:12:46]} {[%emt 00:00:32]} Rf6 {[%clk 00:00:36]}
{[%emt 00:00:41]} 49. Rg6 {[%clk 00:12:43]} {[%emt 00:00:12]} Ree6 {[%clk
00:00:44]} {[%emt 00:00:02]} 50. Rg7+ {[%clk 00:12:22]} {[%emt 00:00:30]} Kd6
{[%clk 00:00:34]} {[%emt 00:00:20]} 51. Ra7 {[%clk 00:12:16]} {[%emt 00:00:10]}
Rg6 {[%clk 00:00:25]} {[%emt 00:00:26]} 52. Rxa6 {[%clk 00:12:20]} {[%emt
00:00:05]} Kd7 {[%clk 00:00:30]} {[%emt 00:00:05]} 53. Ra7+ {[%clk 00:12:18]}
{[%emt 00:00:12]} Kd6 {[%clk 00:00:32]} {[%emt 00:00:08]} 54. Rf7 {[%clk
00:12:15]} {[%emt 00:00:05]} Rgf6 {[%clk 00:00:33]} {[%emt 00:00:17]} 55. Rxf6
{[%clk 00:12:19]} {[%emt 00:00:05]} Rxf6 {[%clk 00:00:43]} {[%emt 00:00:01]} 56.
a4 {[%clk 00:12:25]} {[%emt 00:00:04]} Kd7 {[%clk 00:00:40]} {[%emt 00:00:13]}
57. b5 {[%clk 00:12:30]} {[%emt 00:00:05]} cxb5 {[%clk 00:00:46]} {[%emt
00:00:04]} 58. axb5 {[%clk 00:12:38]} {[%emt 00:00:01]} Rd6 {[%clk 00:00:42]}
{[%emt 00:00:14]} 59. Rc6 {[%clk 00:12:47]} {[%emt 00:00:03]} Rxc6 {[%clk
00:00:45]} {[%emt 00:00:06]} 60. bxc6+ {[%clk 00:12:55]} Kxc6 {[%clk 00:00:54]}
{[%emt 00:00:01]} 61. Kxh6 {[%clk 00:13:04]} {[%emt 00:00:02]} 1-0



[ePGN "0.1;DGT LiveChess/2.2.6"]

[Event "MČR družstev mladších žáků 2024"]
[Site "Harrachov, Czech Republic"]
[Date "2024.06.15"]
[Round "5.20"]
[White "Vorlik Jachym"]
[Black "Mauric Jan"]
[Result "1-0"]
[TimeControl "25+10"]
[WhiteFideId "23750901"]
[BlackFideId "23744200"]
[WhiteElo "1388"]
[BlackElo "1306"]

1. e4 {[%clk 00:25:18]} {[%emt 00:00:03]} e5 {[%clk 00:25:05]} {[%emt
00:00:15]} 2. Nf3 {[%clk 00:25:26]} {[%emt 00:00:02]} Nc6 {[%clk 00:25:14]}
{[%emt 00:00:01]} 3. d4 {[%clk 00:25:34]} {[%emt 00:00:02]} exd4 {[%clk
00:24:58]} {[%emt 00:00:26]} 4. Nxd4 {[%clk 00:25:42]} {[%emt 00:00:02]} Qf6
{[%clk 00:23:41]} {[%emt 00:01:27]} 5. Be3 {[%clk 00:25:40]} {[%emt 00:00:11]}
Bb4+ {[%clk 00:22:42]} {[%emt 00:01:10]} 6. c3 {[%clk 00:25:41]} {[%emt
00:00:09]} Ba5 {[%clk 00:22:28]} {[%emt 00:00:24]} 7. Nxc6 {[%clk 00:25:17]}
{[%emt 00:00:33]} Qxc6 {[%clk 00:22:23]} {[%emt 00:00:15]} 8. Nd2 {[%clk
00:25:00]} {[%emt 00:00:26]} Ne7 {[%clk 00:22:06]} {[%emt 00:00:29]} 9. Bd4
{[%clk 00:24:04]} {[%emt 00:01:06]} O-O {[%clk 00:21:59]} {[%emt 00:00:16]} 10.
Bd3 {[%clk 00:23:18]} {[%emt 00:00:56]} Bb6 {[%clk 00:21:06]} {[%emt 00:01:03]}
11. O-O {[%clk 00:22:48]} {[%emt 00:00:40]} Bxd4 {[%clk 00:21:07]} {[%emt
00:00:10]} 12. cxd4 {[%clk 00:22:36]} {[%emt 00:00:21]} Qg6 {[%clk 00:19:12]}
{[%emt 00:02:05]} 13. Nf3 {[%clk 00:21:12]} {[%emt 00:01:34]} d5 {[%clk
00:16:26]} {[%emt 00:02:57]} 14. Qc2 {[%clk 00:19:44]} {[%emt 00:01:38]} dxe4
{[%clk 00:15:19]} {[%emt 00:01:17]} 15. Bxe4 {[%clk 00:19:37]} {[%emt
00:00:16]} f5 {[%clk 00:14:29]} {[%emt 00:01:00]} 16. Bd3 {[%clk 00:18:05]}
{[%emt 00:01:43]} Qc6 {[%clk 00:12:35]} {[%emt 00:02:03]} 17. Rac1 {[%clk
00:16:53]} {[%emt 00:01:22]} Qxc2 {[%clk 00:12:35]} {[%emt 00:00:08]} 18. Rxc2
{[%clk 00:16:39]} {[%emt 00:00:26]} c6 {[%clk 00:11:51]} {[%emt 00:00:54]} 19.
Bc4+ {[%clk 00:16:15]} {[%emt 00:00:34]} Kh8 {[%clk 00:11:58]} {[%emt
00:00:04]} 20. Ne5 {[%clk 00:15:40]} {[%emt 00:00:45]} g6 {[%clk 00:11:52]}
{[%emt 00:00:16]} 21. Re1 {[%clk 00:15:18]} {[%emt 00:00:32]} Ng8 {[%clk
00:10:33]} {[%emt 00:01:29]} 22. Re3 {[%clk 00:13:45]} {[%emt 00:01:42]} Kg7
{[%clk 00:09:50]} {[%emt 00:00:54]} 23. d5 {[%clk 00:12:41]} {[%emt 00:01:14]}
f4 {[%clk 00:08:27]} {[%emt 00:01:33]} 24. Re1 {[%clk 00:12:10]} {[%emt
00:00:41]} Bf5 {[%clk 00:08:09]} {[%emt 00:00:28]} 25. Rc3 {[%clk 00:12:06]}
{[%emt 00:00:13]} b5 {[%clk 00:07:06]} {[%emt 00:01:14]} 26. Bb3 {[%clk
00:11:18]} {[%emt 00:00:58]} cxd5 {[%clk 00:06:37]} {[%emt 00:00:39]} 27. Rc7+
{[%clk 00:11:02]} {[%emt 00:00:26]} Kh6 {[%clk 00:05:07]} {[%emt 00:01:41]} 28.
Nf7+ {[%clk 00:09:52]} {[%emt 00:01:19]} Kh5 {[%clk 00:05:10]} {[%emt
00:00:07]} 29. Bxd5 {[%clk 00:09:13]} {[%emt 00:00:49]} Rae8 {[%clk 00:04:36]}
{[%emt 00:00:43]} 30. Bf3+ {[%clk 00:08:43]} {[%emt 00:00:40]} Bg4 {[%clk
00:03:44]} {[%emt 00:01:03]} 31. Rc5+ {[%clk 00:08:02]} {[%emt 00:00:50]} Kh4
{[%clk 00:03:13]} {[%emt 00:00:42]} 32. g3+ {[%clk 00:07:26]} {[%emt 00:00:45]}
Kh3 {[%clk 00:03:19]} {[%emt 00:00:05]} 33. Bg2# {[%clk 00:07:12]} {[%emt
00:00:23]} 1-0



[ePGN "0.1;DGT LiveChess/2.2.6"]